[Event "new tournament description"]
[Site "France"]
[Date "2018.12.28"]
[Round "6.1"]
[White "GULIYEV"]
[Black "DAESCHLER"]
[Result "1-0"]
[TimeControl "15min+3sec"]
[WhiteElo "2563"]
[BlackElo "2084"]

1. e4 {[%clk 00:15:05]} e5 {[%clk 00:15:05]} {[%emt 00:00:01]} 2. Nf3 {[%clk
00:15:06]} {[%emt 00:00:01]} Nc6 {[%clk 00:15:07]} {[%emt 00:00:01]} 3. Bb5
{[%clk 00:15:07]} {[%emt 00:00:01]} a6 {[%clk 00:15:09]} {[%emt 00:00:01]} 4.
Ba4 {[%clk 00:15:09]} {[%emt 00:00:01]} Nf6 {[%clk 00:15:11]} 5. O-O {[%clk
00:15:10]} {[%emt 00:00:02]} Be7 {[%clk 00:15:12]} {[%emt 00:00:03]} 6. Re1
{[%clk 00:15:12]} {[%emt 00:00:01]} b5 {[%clk 00:15:13]} {[%emt 00:00:01]} 7.
Bb3 {[%clk 00:15:13]} {[%emt 00:00:01]} d6 {[%clk 00:15:15]} {[%emt 00:00:01]}
8. c3 {[%clk 00:15:15]} {[%emt 00:00:02]} O-O {[%clk 00:15:17]} {[%emt
00:00:02]} 9. d4 {[%clk 00:15:14]} {[%emt 00:00:04]} Bg4 {[%clk 00:15:18]}
{[%emt 00:00:01]} 10. Be3 {[%clk 00:15:13]} {[%emt 00:00:04]} exd4 {[%clk
00:15:19]} {[%emt 00:00:02]} 11. cxd4 {[%clk 00:15:14]} {[%emt 00:00:02]} d5
{[%clk 00:15:21]} {[%emt 00:00:02]} 12. e5 {[%clk 00:14:57]} {[%emt 00:00:20]}
Ne4 {[%clk 00:15:23]} 13. h3 {[%clk 00:13:47]} {[%emt 00:01:13]} Bh5 {[%clk
00:12:21]} {[%emt 00:03:05]} 14. Nc3 {[%clk 00:13:14]} {[%emt 00:00:36]} Nxc3
{[%clk 00:12:15]} {[%emt 00:00:08]} 15. bxc3 {[%clk 00:13:16]} {[%emt
00:00:02]} Na5 {[%clk 00:12:08]} {[%emt 00:00:10]} 16. Bc2 {[%clk 00:13:17]}
{[%emt 00:00:02]} Bg6 {[%clk 00:11:27]} {[%emt 00:00:44]} 17. Bxg6 {[%clk
00:13:14]} {[%emt 00:00:06]} hxg6 {[%clk 00:11:26]} {[%emt 00:00:04]} 18. a4
{[%clk 00:13:14]} {[%emt 00:00:03]} Nc4 {[%clk 00:11:25]} {[%emt 00:00:04]} 19.
axb5 {[%clk 00:12:51]} {[%emt 00:00:27]} axb5 {[%clk 00:11:27]} {[%emt
00:00:01]} 20. Rxa8 {[%clk 00:12:51]} {[%emt 00:00:02]} Qxa8 {[%clk 00:11:28]}
{[%emt 00:00:02]} 21. Bg5 {[%clk 00:12:52]} {[%emt 00:00:01]} Ba3 {[%clk
00:09:56]} {[%emt 00:01:35]} 22. Qd3 {[%clk 00:12:34]} {[%emt 00:00:21]} Qe8
{[%clk 00:08:36]} {[%emt 00:01:23]} 23. Re2 {[%clk 00:11:07]} {[%emt 00:01:30]}
Qe6 {[%clk 00:08:24]} {[%emt 00:00:15]} 24. g4 {[%clk 00:11:07]} {[%emt
00:00:02]} Ra8 {[%clk 00:07:42]} {[%emt 00:00:46]} 25. Kg2 {[%clk 00:10:31]}
{[%emt 00:00:39]} b4 {[%clk 00:06:09]} {[%emt 00:01:37]} 26. cxb4 {[%clk
00:10:16]} {[%emt 00:00:17]} Bxb4 {[%clk 00:05:58]} {[%emt 00:00:14]} 27. Qb3
{[%clk 00:10:14]} {[%emt 00:00:05]} Bf8 {[%clk 00:05:08]} {[%emt 00:00:53]} 28.
Qb7 {[%clk 00:09:48]} {[%emt 00:00:29]} Ra3 {[%clk 00:04:22]} {[%emt 00:00:49]}
29. Qxc7 {[%clk 00:09:08]} {[%emt 00:00:44]} f5 {[%clk 00:04:22]} {[%emt
00:00:03]} 30. Nh2 {[%clk 00:07:20]} {[%emt 00:01:50]} Kh7 {[%clk 00:02:54]}
{[%emt 00:01:31]} 31. Qb8 {[%clk 00:06:41]} {[%emt 00:00:42]} Bd6 {[%clk
00:02:33]} {[%emt 00:00:24]} 32. Qb1 {[%clk 00:05:40]} {[%emt 00:01:05]} fxg4
{[%clk 00:02:00]} {[%emt 00:00:36]} 33. hxg4 {[%clk 00:05:34]} {[%emt
00:00:09]} Bc7 {[%clk 00:01:17]} {[%emt 00:00:46]} 34. Ra2 {[%clk 00:04:57]}
{[%emt 00:00:39]} Rc3 {[%clk 00:00:25]} {[%emt 00:00:54]} 35. Qh1 {[%clk
00:03:38]} {[%emt 00:01:22]} Kg8 {[%clk 00:00:14]} {[%emt 00:00:15]} 36. Ra8+
{[%clk 00:03:10]} {[%emt 00:00:31]} Kf7 {[%clk 00:00:17]} {[%emt 00:00:01]} 37.
Ra7 {[%clk 00:03:08]} {[%emt 00:00:04]} Qb6 {[%clk 00:00:19]} {[%emt 00:00:01]}
38. Qa1 {[%clk 00:03:06]} {[%emt 00:00:04]} Rc2 {[%clk 00:00:11]} {[%emt
00:00:11]} 39. e6+ {[%clk 00:02:37]} {[%emt 00:00:33]} Kg8 {[%clk 00:00:05]}
{[%emt 00:00:09]} 40. e7 {[%clk 00:02:26]} {[%emt 00:00:14]} Qe6 {[%clk
00:00:08]} 41. Ra8+ {[%clk 00:02:20]} {[%emt 00:00:09]} Kh7 {[%clk 00:00:10]}
1-0

[Event "new tournament description"]
[Site "France"]
[Date "2018.12.28"]
[Round "6.2"]
[White "LERCH"]
[Black "BELLAHCENE"]
[Result "1/2-1/2"]
[TimeControl "15min+3sec"]
[WhiteElo "2420"]
[BlackElo "2472"]

1. e4 {[%clk 00:15:04]} {[%emt 00:00:02]} e5 {[%clk 00:14:57]} {[%emt
00:00:10]} 2. Bc4 {[%clk 00:14:57]} {[%emt 00:00:09]} Nf6 {[%clk 00:14:58]}
{[%emt 00:00:02]} 3. d3 {[%clk 00:14:59]} Nc6 {[%clk 00:14:55]} {[%emt
00:00:05]} 4. Nf3 {[%clk 00:15:00]} {[%emt 00:00:02]} h6 {[%clk 00:14:56]}
{[%emt 00:00:02]} 5. O-O {[%clk 00:14:54]} {[%emt 00:00:08]} d6 {[%clk
00:14:55]} {[%emt 00:00:04]} 6. Nc3 {[%clk 00:13:40]} {[%emt 00:01:18]} g5
{[%clk 00:14:45]} {[%emt 00:00:13]} 7. Nd5 {[%clk 00:12:52]} {[%emt 00:00:51]}
Bg7 {[%clk 00:13:38]} {[%emt 00:01:10]} 8. c3 {[%clk 00:12:13]} {[%emt
00:00:42]} g4 {[%clk 00:13:11]} {[%emt 00:00:30]} 9. Ne1 {[%clk 00:11:48]}
{[%emt 00:00:28]} Nxd5 {[%clk 00:10:49]} {[%emt 00:02:25]} 10. Bxd5 {[%clk
00:11:42]} {[%emt 00:00:10]} Qe7 {[%clk 00:10:14]} {[%emt 00:00:37]} 11. f4
{[%clk 00:10:47]} {[%emt 00:00:58]} exf4 {[%clk 00:09:41]} {[%emt 00:00:36]} 12.
Bxf4 {[%clk 00:10:37]} {[%emt 00:00:13]} Bd7 {[%clk 00:09:13]} {[%emt
00:00:30]} 13. Nc2 {[%clk 00:09:08]} {[%emt 00:01:32]} h5 {[%clk 00:08:57]}
{[%emt 00:00:19]} 14. Bg3 {[%clk 00:08:05]} {[%emt 00:01:06]} Nd8 {[%clk
00:08:27]} {[%emt 00:00:34]} 15. Ne3 {[%clk 00:07:52]} {[%emt 00:00:15]} h4
{[%clk 00:06:09]} {[%emt 00:02:21]} 16. Bf4 {[%clk 00:07:30]} {[%emt 00:00:25]}
g3 {[%clk 00:05:41]} {[%emt 00:00:31]} 17. Qf3 {[%clk 00:07:04]} {[%emt
00:00:29]} gxh2+ {[%clk 00:05:17]} {[%emt 00:00:27]} 18. Bxh2 {[%clk 00:07:04]}
{[%emt 00:00:04]} h3 {[%clk 00:05:02]} {[%emt 00:00:18]} 19. g4 {[%clk
00:05:54]} {[%emt 00:01:12]} Be5 {[%clk 00:04:55]} {[%emt 00:00:10]} 20. d4
{[%clk 00:05:43]} {[%emt 00:00:14]} Bxh2+ {[%clk 00:04:50]} {[%emt 00:00:08]}
21. Kxh2 {[%clk 00:05:45]} Rh7 {[%clk 00:04:29]} {[%emt 00:00:25]} 22. g5
{[%clk 00:04:43]} {[%emt 00:01:05]} Ne6 {[%clk 00:02:53]} {[%emt 00:01:40]} 23.
Bxe6 {[%emt 00:02:17]} fxe6 {[%clk 00:01:49]} {[%emt 00:00:22]} 24. e5 {[%clk
00:03:04]} {[%emt 00:00:13]} O-O-O {[%clk 00:01:45]} {[%emt 00:00:07]} 25. g6
{[%clk 00:02:04]} {[%emt 00:01:03]} Rg7 {[%clk 00:01:43]} {[%emt 00:00:05]} 26.
Qf6 {[%clk 00:02:04]} {[%emt 00:00:04]} dxe5 {[%clk 00:00:46]} {[%emt
00:01:00]} 27. Qxe7 {[%clk 00:01:56]} {[%emt 00:00:11]} Rxe7 {[%clk 00:00:48]}
{[%emt 00:00:01]} 28. dxe5 {[%clk 00:01:58]} Rg7 {[%clk 00:00:45]} {[%emt
00:00:06]} 29. Rf6 {[%clk 00:01:52]} {[%emt 00:00:08]} Rdg8 {[%clk 00:00:38]}
{[%emt 00:00:10]} 30. Rg1 {[%clk 00:01:45]} {[%emt 00:00:10]} Kd8 {[%clk
00:00:34]} {[%emt 00:00:08]} 31. Kxh3 {[%clk 00:01:11]} {[%emt 00:00:38]} Ke7
{[%clk 00:00:36]} 32. Nc2 {[%clk 00:00:47]} {[%emt 00:00:27]} c5 {[%clk
00:00:32]} {[%emt 00:00:08]} 33. Ne1 {[%clk 00:00:49]} {[%emt 00:00:01]} Rh8+
{[%clk 00:00:27]} {[%emt 00:00:07]} 34. Kg3 {[%clk 00:00:48]} {[%emt 00:00:04]}
Rh6 {[%clk 00:00:27]} {[%emt 00:00:03]} 35. Kf2 {[%clk 00:00:46]} {[%emt
00:00:03]} Be8 {[%clk 00:00:27]} {[%emt 00:00:04]} 36. Nd3 {[%clk 00:00:48]}
{[%emt 00:00:01]} Rgxg6 {[%clk 00:00:14]} {[%emt 00:00:17]} 37. Rfxg6 {[%clk
00:00:45]} {[%emt 00:00:06]} Bxg6 {[%clk 00:00:15]} {[%emt 00:00:02]} 38. Nxc5
{[%emt 00:00:05]} b6 39. Nb3 {[%clk 00:00:45]} Be4 {[%clk 00:00:19]} {[%emt
00:00:02]} 40. Ke3 {[%clk 00:00:47]} Bd5 {[%clk 00:00:20]} {[%emt 00:00:03]} 41.
Rg7+ {[%clk 00:00:47]} {[%emt 00:00:03]} Kd8 {[%clk 00:00:21]} {[%emt
00:00:02]} 42. Rxa7 {[%emt 00:00:02]} Rh3+ 43. Kd2 {[%clk 00:00:26]} {[%emt
00:00:25]} Rh2+ {[%clk 00:00:26]} {[%emt 00:00:01]} 44. Kc1 {[%clk 00:00:27]}
{[%emt 00:00:02]} Rh1+ {[%clk 00:00:27]} {[%emt 00:00:02]} 45. Kc2 {[%clk
00:00:28]} {[%emt 00:00:01]} Re1 {[%clk 00:00:22]} {[%emt 00:00:08]} 46. Nd2
{[%clk 00:00:25]} {[%emt 00:00:06]} Rxe5 {[%clk 00:00:23]} {[%emt 00:00:02]} 47.
c4 {[%clk 00:00:28]} Bc6 {[%clk 00:00:24]} {[%emt 00:00:02]} 48. b4 {[%clk
00:00:29]} {[%emt 00:00:02]} Rh5 {[%clk 00:00:20]} {[%emt 00:00:07]} 49. a4
{[%clk 00:00:30]} {[%emt 00:00:02]} e5 {[%clk 00:00:18]} {[%emt 00:00:05]} 50.
b5 {[%clk 00:00:32]} {[%emt 00:00:01]} Bd7 {[%clk 00:00:19]} {[%emt 00:00:02]}
51. Rb7 {[%clk 00:00:25]} {[%emt 00:00:10]} Bf5+ {[%clk 00:00:22]} 52. Kc3
{[%clk 00:00:23]} {[%emt 00:00:04]} Rh3+ {[%clk 00:00:23]} {[%emt 00:00:01]} 53.
Kb4 {[%clk 00:00:22]} {[%emt 00:00:04]} Rd3 {[%clk 00:00:22]} {[%emt 00:00:04]}
54. Rxb6 {[%clk 00:00:14]} {[%emt 00:00:12]} Rxd2 {[%clk 00:00:23]} {[%emt
00:00:02]} 55. a5 {[%clk 00:00:16]} {[%emt 00:00:01]} e4 {[%clk 00:00:12]}
{[%emt 00:00:14]} 56. Rf6 {[%clk 00:00:18]} {[%emt 00:00:01]} Bc8 {[%clk
00:00:12]} {[%emt 00:00:03]} 57. Rf8+ {[%clk 00:00:17]} {[%emt 00:00:04]} Kc7
{[%clk 00:00:12]} {[%emt 00:00:03]} 58. c5 {[%clk 00:00:15]} {[%emt 00:00:05]}
Rb2+ {[%clk 00:00:11]} {[%emt 00:00:04]} 59. Ka4 {[%clk 00:00:18]} Bd7 {[%clk
00:00:12]} {[%emt 00:00:03]} 60. c6 {[%clk 00:00:19]} {[%emt 00:00:02]} Bxc6
{[%clk 00:00:13]} {[%emt 00:00:02]} 61. bxc6 {[%clk 00:00:21]} Kxc6 {[%clk
00:00:16]} 62. Re8 {[%clk 00:00:24]} Kd5 {[%clk 00:00:16]} {[%emt 00:00:03]} 63.
a6 {[%clk 00:00:24]} {[%emt 00:00:02]} Kc5 {[%clk 00:00:06]} {[%emt 00:00:12]}
64. a7 {[%clk 00:00:16]} {[%emt 00:00:11]} Ra2+ {[%clk 00:00:09]} 65. Kb3
{[%clk 00:00:18]} {[%emt 00:00:01]} 1/2-1/2

[ePGN "0.1;DGT LiveChess/2.2.3"]

[Event "new tournament description"]
[Site "France"]
[Date "2018.12.28"]
[Round "7.2"]
[White "VATTER"]
[Black "LERCH"]
[Result "1/2-1/2"]
[TimeControl "15min+3sec"]
[WhiteElo "2354"]
[BlackElo "2420"]

1. d4 {[%clk 00:15:05]} {[%emt 00:08:02]} Nf6 {[%clk 00:15:04]} {[%emt
00:00:03]} 2. Bg5 {[%clk 00:15:06]} {[%emt 00:00:02]} e6 {[%clk 00:15:06]}
{[%emt 00:00:02]} 3. Nd2 {[%clk 00:15:07]} {[%emt 00:00:02]} h6 {[%clk
00:15:05]} {[%emt 00:00:04]} 4. Bh4 {[%clk 00:15:08]} {[%emt 00:00:02]} c5
{[%clk 00:15:04]} {[%emt 00:00:04]} 5. e3 {[%clk 00:15:04]} {[%emt 00:00:06]}
Be7 {[%clk 00:14:59]} {[%emt 00:00:07]} 6. c3 {[%clk 00:14:59]} {[%emt
00:00:08]} b6 {[%clk 00:14:50]} {[%emt 00:00:13]} 7. Ngf3 {[%clk 00:14:58]}
{[%emt 00:00:03]} Bb7 {[%clk 00:14:51]} {[%emt 00:00:03]} 8. Bd3 {[%clk
00:14:59]} {[%emt 00:00:01]} O-O {[%clk 00:14:36]} {[%emt 00:00:19]} 9. Qe2
{[%clk 00:15:00]} {[%emt 00:00:02]} cxd4 {[%clk 00:14:27]} {[%emt 00:00:12]} 10.
cxd4 {[%clk 00:14:58]} {[%emt 00:00:05]} d6 {[%clk 00:14:22]} {[%emt 00:00:08]}
11. O-O {[%clk 00:14:55]} {[%emt 00:00:05]} Nc6 {[%clk 00:14:06]} {[%emt
00:00:19]} 12. a3 {[%clk 00:14:56]} {[%emt 00:00:02]} Rc8 {[%clk 00:14:08]}
{[%emt 00:00:02]} 13. Rac1 {[%clk 00:14:51]} {[%emt 00:00:07]} Rc7 {[%clk
00:13:21]} {[%emt 00:00:51]} 14. Bb1 {[%clk 00:14:04]} {[%emt 00:00:49]} Nh5
{[%clk 00:09:42]} {[%emt 00:03:42]} 15. Bxe7 {[%clk 00:13:54]} {[%emt
00:00:13]} Qxe7 {[%clk 00:09:43]} {[%emt 00:00:02]} 16. Rc3 {[%clk 00:12:41]}
{[%emt 00:01:16]} Nf6 {[%clk 00:08:58]} {[%emt 00:00:49]} 17. e4 {[%clk
00:12:29]} {[%emt 00:00:13]} e5 {[%clk 00:08:44]} {[%emt 00:00:18]} 18. d5
{[%clk 00:12:28]} {[%emt 00:00:04]} Nb8 {[%clk 00:08:39]} {[%emt 00:00:08]} 19.
Rfc1 {[%clk 00:12:21]} {[%emt 00:00:10]} Rfc8 {[%clk 00:08:30]} {[%emt
00:00:12]} 20. Qd3 {[%clk 00:12:13]} {[%emt 00:00:11]} Qd8 {[%clk 00:07:50]}
{[%emt 00:00:45]} 21. h3 {[%clk 00:11:14]} {[%emt 00:01:00]} Ba6 {[%clk
00:07:00]} {[%emt 00:00:54]} 22. Qe3 {[%clk 00:11:15]} {[%emt 00:00:01]} Nbd7
{[%clk 00:06:55]} {[%emt 00:00:08]} 23. b4 {[%clk 00:11:10]} {[%emt 00:00:07]}
Ne8 {[%clk 00:05:50]} {[%emt 00:01:08]} 24. g3 {[%emt 00:00:35]} Rxc3 {[%clk
00:05:23]} 25. Rxc3 {[%clk 00:11:10]} {[%emt 00:00:01]} Rxc3 {[%clk 00:05:25]}
{[%emt 00:00:01]} 26. Qxc3 {[%clk 00:11:11]} {[%emt 00:00:01]} Qc7 {[%clk
00:05:03]} {[%emt 00:00:25]} 27. Qb2 {[%clk 00:10:38]} {[%emt 00:00:36]} Ndf6
{[%clk 00:04:37]} {[%emt 00:00:30]} 28. Bc2 {[%clk 00:09:59]} {[%emt 00:00:41]}
Bb5 {[%clk 00:04:30]} {[%emt 00:00:09]} 29. Kg2 {[%clk 00:09:21]} {[%emt
00:00:41]} Nh7 {[%clk 00:04:13]} {[%emt 00:00:21]} 30. Ne1 {[%clk 00:08:32]}
{[%emt 00:00:52]} Qc8 {[%clk 00:04:02]} {[%emt 00:00:15]} 31. Bd1 {[%clk
00:08:24]} {[%emt 00:00:09]} Bd7 {[%clk 00:03:55]} {[%emt 00:00:11]} 32. h4
{[%clk 00:08:18]} {[%emt 00:00:09]} Nhf6 {[%clk 00:03:43]} {[%emt 00:00:15]} 33.
Be2 {[%clk 00:08:16]} {[%emt 00:00:04]} Qc7 {[%clk 00:03:32]} {[%emt 00:00:15]}
34. Nc2 {[%clk 00:07:44]} {[%emt 00:00:35]} Kh7 {[%clk 00:03:12]} {[%emt
00:00:23]} 35. Ne3 {[%clk 00:07:44]} {[%emt 00:00:02]} g6 {[%clk 00:03:06]}
{[%emt 00:00:09]} 36. Bd3 {[%clk 00:06:51]} {[%emt 00:00:55]} Nh5 {[%clk
00:03:03]} {[%emt 00:00:07]} 37. Be2 {[%clk 00:06:21]} {[%emt 00:00:33]} Nhg7
{[%clk 00:03:04]} {[%emt 00:00:02]} 38. Bd3 {[%clk 00:05:48]} {[%emt 00:00:36]}
Kg8 {[%clk 00:03:06]} {[%emt 00:00:02]} 39. Be2 {[%clk 00:05:11]} {[%emt
00:00:40]} Kh7 {[%clk 00:03:05]} {[%emt 00:00:04]} 40. Bd3 {[%clk 00:05:05]}
{[%emt 00:00:08]} Kg8 {[%clk 00:03:07]} 41. Be2 {[%clk 00:05:07]} {[%emt
00:00:01]} Kh7 {[%clk 00:03:08]} {[%emt 00:00:01]} 1/2-1/2

[ePGN "0.1;DGT LiveChess/2.2.3"]

[Event "new tournament description"]
[Site "France"]
[Date "2018.12.28"]
[Round "8.1"]
[White "GULIYEV"]
[Black "GOZZOLI"]
[Result "0-1"]
[TimeControl "15min+3sec"]
[WhiteElo "2563"]
[BlackElo "2582"]

1. e4 {[%clk 00:15:05]} {[%emt 00:09:13]} e5 {[%clk 00:15:06]} 2. Nf3 {[%clk
00:15:07]} {[%emt 00:00:01]} Nc6 {[%clk 00:15:08]} 3. Nc3 {[%clk 00:15:09]} Nf6
{[%clk 00:15:09]} {[%emt 00:00:04]} 4. d4 {[%clk 00:15:11]} {[%emt 00:00:01]}
exd4 {[%clk 00:15:10]} 5. Nxd4 {[%clk 00:15:13]} {[%emt 00:00:01]} Bb4 {[%clk
00:15:12]} 6. Nxc6 {[%clk 00:15:14]} {[%emt 00:00:02]} bxc6 {[%clk 00:15:15]} 7.
Bd3 {[%clk 00:15:16]} {[%emt 00:00:02]} d5 {[%clk 00:15:17]} 8. exd5 {[%clk
00:15:16]} {[%emt 00:00:03]} O-O {[%clk 00:15:19]} {[%emt 00:00:01]} 9. O-O
{[%clk 00:15:17]} {[%emt 00:00:02]} cxd5 {[%clk 00:15:21]} {[%emt 00:00:01]} 10.
Bg5 {[%clk 00:15:04]} {[%emt 00:00:15]} c6 {[%clk 00:15:21]} {[%emt 00:00:04]}
11. h3 {[%clk 00:14:58]} {[%emt 00:00:09]} h6 {[%clk 00:15:19]} {[%emt
00:00:05]} 12. Bh4 {[%clk 00:14:53]} {[%emt 00:00:07]} Bd6 {[%clk 00:15:12]}
{[%emt 00:00:11]} 13. Qf3 {[%clk 00:14:34]} {[%emt 00:00:22]} Rb8 {[%clk
00:15:06]} {[%emt 00:00:09]} 14. Rab1 {[%clk 00:13:46]} {[%emt 00:00:51]} Re8
{[%clk 00:14:15]} {[%emt 00:00:54]} 15. Bxf6 {[%clk 00:12:59]} {[%emt
00:00:50]} Qxf6 {[%clk 00:14:16]} {[%emt 00:00:02]} 16. Qxf6 {[%clk 00:13:01]}
{[%emt 00:00:01]} gxf6 {[%clk 00:14:17]} {[%emt 00:00:01]} 17. b3 {[%clk
00:12:57]} {[%emt 00:00:07]} Kg7 {[%clk 00:13:44]} {[%emt 00:00:36]} 18. Ne2
{[%clk 00:12:54]} {[%emt 00:00:06]} c5 {[%clk 00:13:42]} {[%emt 00:00:05]} 19.
c4 {[%clk 00:11:45]} {[%emt 00:01:12]} d4 {[%clk 00:13:41]} {[%emt 00:00:03]}
20. Ng3 {[%clk 00:11:26]} {[%emt 00:00:21]} Bxg3 {[%clk 00:13:41]} {[%emt
00:00:05]} 21. fxg3 {[%clk 00:11:27]} {[%emt 00:00:02]} Re5 {[%clk 00:11:58]}
{[%emt 00:01:45]} 22. g4 {[%clk 00:11:20]} {[%emt 00:00:10]} a5 {[%clk
00:11:54]} {[%emt 00:00:07]} 23. Rf3 {[%clk 00:10:54]} {[%emt 00:00:29]} a4
{[%clk 00:11:20]} {[%emt 00:00:38]} 24. bxa4 {[%clk 00:10:11]} {[%emt
00:00:47]} Ra8 {[%clk 00:11:17]} {[%emt 00:00:05]} 25. Bc2 {[%clk 00:09:45]}
{[%emt 00:00:29]} Be6 {[%clk 00:11:11]} {[%emt 00:00:09]} 26. Bb3 {[%clk
00:09:36]} {[%emt 00:00:12]} Bd7 {[%clk 00:10:07]} {[%emt 00:01:08]} 27. Rbf1
{[%clk 00:09:20]} {[%emt 00:00:19]} Ra6 {[%clk 00:09:59]} {[%emt 00:00:10]} 28.
Kh2 {[%clk 00:07:44]} {[%emt 00:01:39]} Bc8 {[%clk 00:09:53]} {[%emt 00:00:09]}
29. R1f2 {[%clk 00:07:35]} {[%emt 00:00:11]} Bb7 {[%clk 00:09:28]} {[%emt
00:00:29]} 30. Rf5 {[%clk 00:07:24]} {[%emt 00:00:14]} Bc8 {[%clk 00:08:26]}
{[%emt 00:01:05]} 31. R5f3 {[%clk 00:07:20]} {[%emt 00:00:06]} Re7 {[%clk
00:06:54]} {[%emt 00:01:35]} 32. Bd1 {[%clk 00:06:53]} {[%emt 00:00:30]} Bd7
{[%clk 00:06:47]} {[%emt 00:00:11]} 33. Bb3 {[%clk 00:06:01]} {[%emt 00:00:55]}
Bxa4 {[%clk 00:06:08]} {[%emt 00:00:42]} 34. Rf5 {[%clk 00:05:48]} {[%emt
00:00:15]} Rc7 {[%clk 00:06:06]} {[%emt 00:00:05]} 35. Bxa4 {[%clk 00:05:03]}
{[%emt 00:00:49]} Rxa4 {[%clk 00:06:09]} 36. Rc2 {[%clk 00:05:04]} {[%emt
00:00:01]} Ra3 {[%clk 00:06:05]} {[%emt 00:00:07]} 37. Kg1 {[%clk 00:04:52]}
{[%emt 00:00:15]} Rc6 {[%clk 00:06:03]} {[%emt 00:00:05]} 38. Rd5 {[%clk
00:04:49]} {[%emt 00:00:05]} Kg6 {[%clk 00:05:38]} {[%emt 00:00:29]} 39. Kf1
{[%clk 00:04:47]} {[%emt 00:00:03]} Ra5 {[%clk 00:05:30]} {[%emt 00:00:13]} 40.
Rb2 {[%clk 00:04:36]} {[%emt 00:00:14]} Re6 {[%clk 00:05:24]} {[%emt 00:00:09]}
41. Kf2 {[%clk 00:04:23]} {[%emt 00:00:15]} Re3 {[%clk 00:05:22]} {[%emt
00:00:05]} 42. Rc2 {[%clk 00:04:17]} {[%emt 00:00:09]} Rea3 {[%clk 00:05:20]}
{[%emt 00:00:05]} 43. Ke1 {[%clk 00:04:15]} {[%emt 00:00:04]} Kg7 {[%clk
00:04:56]} {[%emt 00:00:28]} 44. Kd1 {[%clk 00:04:14]} {[%emt 00:00:03]} Re3
{[%clk 00:04:47]} {[%emt 00:00:12]} 45. Kc1 {[%clk 00:04:06]} {[%emt 00:00:11]}
Kf8 {[%clk 00:04:49]} {[%emt 00:00:01]} 46. Rh5 {[%clk 00:04:02]} {[%emt
00:00:06]} Kg7 {[%clk 00:04:46]} {[%emt 00:00:06]} 47. Rd5 {[%clk 00:04:03]}
{[%emt 00:00:02]} Re5 {[%clk 00:04:44]} {[%emt 00:00:05]} 48. Kb2 {[%clk
00:03:47]} {[%emt 00:00:19]} Ra4 {[%clk 00:04:35]} {[%emt 00:00:12]} 49. a3
{[%clk 00:02:01]} {[%emt 00:01:49]} Ra5 {[%clk 00:04:32]} {[%emt 00:00:06]} 50.
Rxe5 {[%clk 00:01:21]} {[%emt 00:00:43]} fxe5 {[%clk 00:04:35]} {[%emt
00:00:01]} 51. Re2 {[%clk 00:01:19]} {[%emt 00:00:04]} Kf6 {[%clk 00:04:37]}
{[%emt 00:00:02]} 52. Kb3 {[%clk 00:01:07]} {[%emt 00:00:15]} Ke6 {[%clk
00:04:37]} {[%emt 00:00:02]} 53. a4 {[%clk 00:01:09]} {[%emt 00:00:01]} Ra8
{[%clk 00:04:39]} 54. Ka3 {[%clk 00:01:04]} {[%emt 00:00:08]} d3 {[%clk
00:04:38]} {[%emt 00:00:04]} 55. Re1 {[%clk 00:01:00]} {[%emt 00:00:07]} d2
{[%clk 00:04:39]} {[%emt 00:00:03]} 56. Rd1 {[%clk 00:00:58]} {[%emt 00:00:05]}
Rd8 {[%clk 00:04:41]} 57. a5 {[%clk 00:00:26]} {[%emt 00:00:36]} e4 {[%clk
00:04:43]} 58. a6 {[%clk 00:00:28]} e3 {[%clk 00:04:45]} 59. a7 {[%clk
00:00:27]} {[%emt 00:00:04]} Ra8 {[%clk 00:04:39]} {[%emt 00:00:10]} 60. Kb3
{[%clk 00:00:29]} Rxa7 {[%clk 00:04:41]} {[%emt 00:00:01]} 61. Kc2 {[%clk
00:00:24]} {[%emt 00:00:08]} Rd7 {[%clk 00:04:42]} {[%emt 00:00:02]} 0-1